bitfinex/quotes_ETHUSD_20250504
["timestamp","ask_amount","ask_price","bid_price","bid_amount"]
[1746387625181,6.14,1834.2,1834.0,7.46736272]
[1746387625480,6.14,1834.4,1834.1,5.45226541]
[1746387625685,6.14,1834.4,1834.1,9.92526541]
[1746387628163,0.8223,1834.3,1834.1,9.92526541]
[1746387631496,6.9623,1834.3,1834.1,9.92526541]
[1746387632923,6.14,1834.3,1834.1,9.92526541]
[1746387633105,6.14,1834.3,1834.2,5.45196816]
[1746387633406,6.14,1834.3,1834.1,11.84615789]
[1746387634615,0.47050619,1834.2,1834.1,11.84615789]
[1746387643329,0.47050619,1834.2,1834.1,13.72361436]
[1746387644429,0.47050619,1834.2,1834.1,11.84615789]
[1746387646830,6.14,1834.3,1834.2,5.45196816]
[1746387647131,6.61205228,1834.3,1834.2,5.45196816]
[1746387650013,6.61205228,1834.3,1834.2,6.6978437]
[1746387653429,6.61205228,1834.3,1834.2,5.45196816]
[1746387657567,6.61205228,1834.3,1834.2,9.92396816]
[1746387659570,6.61205228,1834.3,1834.2,4.472]
[1746387662283,6.61205228,1834.3,1834.1,9.92419629]
[1746387670525,0.8179,1834.2,1834.0,4.471]
[1746387670865,0.46582978,1834.1,1834.0,4.471]
[1746387674067,0.46582978,1834.1,1834.0,9.9235627]
[1746387674479,0.46582978,1834.1,1834.0,4.471]
[1746387675097,0.46582978,1834.1,1834.0,9.9235627]
[1746387677315,0.46582978,1834.1,1834.0,4.471]
[1746387677714,0.46582978,1834.1,1834.0,9.9235627]
[1746387679426,0.46582978,1834.1,1834.0,11.80101917]
[1746387680812,6.9043,1834.3,1834.0,11.80101917]
[1746387681021,0.46582978,1834.1,1834.0,11.80101917]
[1746387681194,6.9043,1834.3,1834.0,11.80101917]
[1746387681530,0.46582978,1834.1,1834.0,11.80101917]
[1746387681822,0.46582978,1834.1,1834.0,13.60640165]
[1746387682031,6.9043,1834.3,1834.0,13.60640165]
[1746387682328,0.46582978,1834.1,1834.0,11.80084581]
[1746387682522,6.9043,1834.3,1834.0,11.8007959]
[1746387682724,0.46582978,1834.1,1834.0,11.8007959]
[1746387682892,6.9043,1834.3,1834.0,11.80079408]
[1746387683092,6.14,1834.3,1834.1,5.4522296]
[1746387684327,12.36877871,1834.4,1834.1,5.4522296]
[1746387684535,13.60565658,1834.4,1834.1,5.4522296]
[1746387686747,8.15427787,1834.4,1834.1,5.4522296]
[1746387687137,6.9174,1834.4,1834.1,5.4522296]
[1746387688251,12.36878055,1834.4,1834.1,5.4522296]
[1746387688453,12.36878055,1834.4,1834.0,11.80087589]
[1746387689016,12.36878055,1834.4,1834.0,9.92341942]
[1746387689225,12.36878055,1834.4,1834.0,9.92335138]
[1746387692166,0.8073,1834.3,1834.0,4.471]
[1746387692371,0.8073,1834.3,1834.0,9.92353918]
[1746387694560,0.46582978,1834.2,1834.0,9.92353918]
[1746387695455,0.46582978,1834.2,1834.0,4.471]
[1746387695661,0.46582978,1834.2,1834.0,9.92351275]
[1746387696023,6.60582978,1834.2,1834.0,9.92351275]
[1746387699255,6.60582978,1834.2,1834.0,11.76986561]
[1746387699458,6.60582978,1834.2,1834.1,0.7514]
[1746387700147,6.60582978,1834.2,1834.1,6.20366541]
[1746387702158,6.60582978,1834.2,1834.1,10.67366541]
[1746387707995,6.60582978,1834.2,1834.1,9.92226541]
[1746387708905,6.60582978,1834.2,1834.1,4.47]
[1746387709197,6.60582978,1834.2,1834.1,9.92226541]
[1746387709497,6.60582978,1834.2,1834.1,4.47]
[1746387716574,6.60582978,1834.2,1834.0,10.7187521]
[1746387717004,6.60582978,1834.2,1834.0,10.71855788]
[1746387717383,6.60582978,1834.2,1834.1,5.45226541]
[1746387721123,6.60582978,1834.2,1834.0,12.52345164]
[1746387723700,6.60582978,1834.2,1834.0,17.9757801]
[1746387724024,6.60582978,1834.2,1834.1,5.45226541]
[1746387725227,0.46582978,1834.2,1834.1,7.32972188]
[1746387725391,6.9354,1834.5,1834.2,5.45172858]
[1746387725586,0.46582978,1834.4,1834.3,5.45160548]
[1746387725787,0.46582978,1834.4,1834.3,8.10746195]
[1746387726000,10.60859572,1834.7,1834.4,5.45130865]
[1746387726222,0.46582978,1834.6,1834.4,5.45130865]
[1746387726385,10.60859572,1834.7,1834.4,9.92130865]
[1746387726590,0.46582978,1834.6,1834.4,9.92130865]
[1746387726811,10.60859572,1834.7,1834.5,5.45107658]
[1746387727023,0.46582978,1834.6,1834.5,5.45107658]
[1746387727194,10.60859572,1834.7,1834.4,19.05273448]
[1746387727389,0.46582978,1834.6,1834.5,5.45107275]
[1746387727616,10.60859572,1834.7,1834.4,13.60153614]
[1746387727819,0.46582978,1834.6,1834.4,13.60153614]
[1746387728217,9.82199572,1834.7,1834.4,13.60153614]
[1746387728418,0.46582978,1834.6,1834.5,5.4510553]
[1746387728618,0.46582978,1834.6,1834.4,13.60152383]
[1746387728791,6.14,1834.7,1834.5,1.36015238]
[1746387729000,0.46582978,1834.6,1834.5,3.23760885]
[1746387729200,6.5444519,1834.8,1834.6,5.45077204]
[1746387729410,0.47096203,1834.7,1834.5,9.46690229]
[1746387729617,0.47096203,1834.7,1834.5,9.46687719]
[1746387729943,0.47096203,1834.7,1834.6,0.94668772]
[1746387731308,0.47096203,1834.7,1834.5,14.91768564]
[1746387731509,0.47096203,1834.7,1834.5,13.04022917]
[1746387732145,0.47096203,1834.7,1834.6,5.45077946]
[1746387733645,0.47096203,1834.7,1834.5,2.13855238]
[1746387733947,0.47096203,1834.7,1834.5,1.36015238]
[1746387734537,0.47096203,1834.7,1834.5,6.81107704]
[1746387735536,1.28296203,1834.7,1834.5,5.45092466]
[1746387735934,1.28296203,1834.7,1834.4,9.92125189]
[1746387736140,1.28296203,1834.7,1834.4,15.37241831]
[1746387736434,1.28296203,1834.7,1834.5,5.45106813]
[1746387737146,1.28296203,1834.7,1834.4,9.92116642]
[1746387737345,5.45078599,1834.6,1834.4,4.47]
[1746387737654,7.99602077,1834.7,1834.4,4.47]
[1746387737861,7.99602077,1834.7,1834.4,9.92131456]
[1746387737862,0.47096203,1834.5,1834.4,9.92131456]
[1746387738160,6.66809578,1834.7,1834.4,4.47]
[1746387738348,0.47096203,1834.5,1834.4,4.47]
[1746387738551,6.66809578,1834.7,1834.4,4.47]
[1746387738754,0.47096203,1834.5,1834.4,4.47]
[1746387739225,6.66809578,1834.7,1834.4,4.47]
[1746387739416,0.47096203,1834.5,1834.4,4.47]
[1746387739733,1.21761241,1834.7,1834.4,9.92137048]
[1746387739918,0.47096203,1834.5,1834.4,9.92137048]
[1746387742372,0.47096203,1834.5,1834.4,12.56552695]
[1746387743177,0.47096203,1834.5,1834.4,9.92137048]
[1746387745794,0.47096203,1834.5,1834.4,10.74307048]
[1746387758724,0.47096203,1834.5,1834.4,4.47]
[1746387758914,1.21294823,1834.5,1834.4,4.47]
[1746387759086,0.8089,1834.4,1833.9,28.78236685]
[1746387759289,0.8089,1834.2,1834.0,4.467]
[1746387759838,0.47026661,1834.1,1834.0,4.467]
[1746387761703,0.47026661,1834.1,1834.0,11.79701917]
[1746387761898,6.14,1834.3,1834.1,5.45209162]
[1746387762129,6.14,1834.3,1834.2,1.87745647]
[1746387762932,6.14,1834.3,1834.2,7.32942463]
[1746387763135,6.14,1834.3,1834.2,1.87745647]
[1746387763504,6.14,1834.5,1834.2,7.32936734]
[1746387763836,6.14,1834.5,1834.2,7.64026291]
[1746387764035,6.14,1834.5,1834.2,8.94950289]
[1746387764718,6.14,1834.5,1834.3,5.45166713]
[1746387766130,6.14,1834.5,1834.2,8.94940607]
[1746387769458,0.46647983,1834.4,1834.2,8.94940607]
[1746387769665,0.46647983,1834.4,1834.2,6.76118546]
[1746387770537,0.46647983,1834.4,1834.2,5.45194548]
[1746387775568,0.46647983,1834.4,1834.2,5.45178128]
[1746387775747,0.46647983,1834.4,1834.3,5.45167093]
[1746387776073,1.26047983,1834.4,1834.0,10.67638036]
[1746387776430,1.26047983,1834.4,1834.0,10.67633464]
[1746387777072,1.26047983,1834.4,1834.1,5.45226451]
[1746387777769,5.45180045,1834.3,1834.0,4.467]
[1746387778106,0.46578424,1834.2,1834.0,4.467]
[1746387780970,6.60578424,1834.2,1834.0,4.467]
[1746387781271,7.39978424,1834.2,1834.0,4.467]
[1746387783770,7.39978424,1834.2,1834.0,6.34332524]
[1746387785049,12.85176103,1834.2,1834.0,6.34332524]
[1746387785279,9.23014694,1834.2,1834.0,6.34332524]
[1746387785584,14.68222489,1834.2,1834.0,4.467]
[1746387785785,14.68222489,1834.2,1834.0,6.34332524]
[1746387786088,9.23014694,1834.2,1834.0,6.34332524]
[1746387786383,14.68217207,1834.2,1834.0,1.87632524]
[1746387787063,6.14,1834.1,1834.0,1.87632524]
[1746387787449,6.60578424,1834.1,1834.0,1.87632524]
[1746387791793,6.60578424,1834.1,1833.9,1.87632524]
[1746387794161,6.60578424,1834.1,1833.9,7.32917935]
[1746387794706,6.60578424,1834.1,1834.0,1.87632524]
[1746387795124,6.60578424,1834.1,1833.9,5.45285411]
[1746387795399,6.60578424,1834.1,1834.0,1.87632524]
[1746387796397,6.60578424,1834.1,1834.0,7.32888794]
[1746387796579,6.60578424,1834.1,1834.0,8.06180587]
[1746387801202,6.60578424,1834.1,1834.0,8.84960587]
[1746387802004,6.60354249,1834.1,1834.0,8.84960587]
[1746387808026,6.60354249,1834.1,1834.0,3.39704317]
[1746387808211,6.60354249,1834.1,1834.0,8.84960587]
[1746387808606,6.14,1834.1,1834.0,8.84960587]
[1746387809128,6.60447024,1834.1,1834.0,8.84960587]
[1746387810315,0.46447024,1834.1,1834.0,8.84960587]
[1746387810630,6.14,1834.4,1834.0,14.30216857]
[1746387810841,0.46447024,1834.1,1834.0,8.84938228]
[1746387811041,6.14,1834.4,1834.0,8.84938228]
[1746387811202,0.46447024,1834.1,1834.0,8.84938228]
[1746387811403,11.59139432,1834.4,1834.0,14.30175561]
[1746387811707,0.46447024,1834.3,1834.0,8.84938228]
[1746387811903,11.59139432,1834.4,1834.0,8.84938228]
[1746387812841,11.59139432,1834.4,1834.0,8.84938228]
[1746387813354,0.46524324,1834.3,1834.0,8.84938228]
[1746387813641,11.59139432,1834.4,1834.0,8.84938228]
[1746387813841,0.46524324,1834.2,1834.0,8.84938228]
[1746387814007,11.59139432,1834.4,1834.1,0.88493823]
[1746387814208,0.46524324,1834.1,1834.0,8.84938228]
[1746387814454,11.59139432,1834.4,1834.0,8.11646435]
[1746387814654,0.46524324,1834.1,1834.0,6.24013911]
[1746387814945,6.14,1834.4,1834.1,5.452254]
[1746387817768,6.934,1834.4,1834.1,5.452254]
[1746387817980,6.934,1834.4,1834.1,5.45206104]
[1746387818972,6.934,1834.4,1834.1,5.45205972]
[1746387820668,6.934,1834.4,1834.1,5.4520475]
[1746387820836,6.934,1834.4,1834.2,5.45193262]
[1746387821278,6.14,1834.4,1834.3,5.45167093]
[1746387821438,6.14,1834.4,1834.2,5.99696885]
[1746387821633,11.59147647,1834.4,1834.0,10.70816374]
[1746387821861,12.38547647,1834.4,1834.0,12.58448898]
[1746387822046,6.14,1834.3,1834.0,12.58448898]
[1746387823578,0.794,1834.2,1834.0,4.468]
[1746387825577,0.794,1834.2,1834.0,9.92053777]
[1746387827066,6.9172,1834.3,1834.0,9.92053777]
[1746387827942,6.14,1834.2,1834.0,4.468]
[1746387829374,0.46485674,1834.1,1834.0,4.468]
[1746387829672,0.46485674,1834.1,1834.0,9.9205627]
[1746387829880,0.46485674,1834.1,1834.0,14.29464373]
[1746387834238,6.14,1834.4,1834.2,5.45177815]
[1746387834558,0.46485674,1834.3,1834.2,5.45177815]
[1746387834762,6.14,1834.4,1834.2,5.45177815]
[1746387835069,0.46485674,1834.3,1834.2,5.45177815]
[1746387835272,0.46485674,1834.3,1834.2,6.72980348]
[1746387835473,6.14,1834.4,1834.2,6.72980348]
[1746387835686,0.46485674,1834.3,1834.2,6.72980348]
[1746387835987,6.14,1834.4,1834.2,6.72980348]
[1746387836188,0.46485674,1834.3,1834.2,6.72980348]
[1746387836391,6.14,1834.4,1834.2,1.27802533]
[1746387836565,0.46485674,1834.3,1834.1,7.32843488]
[1746387836766,6.14,1834.4,1834.1,7.32843488]
[1746387837091,0.46485674,1834.3,1834.1,12.78046871]
[1746387837387,6.14,1834.4,1834.2,5.45196816]
[1746387837586,0.46485674,1834.3,1834.2,5.45196816]
[1746387837788,6.14,1834.4,1834.2,5.45196816]
[1746387837988,0.46485674,1834.3,1834.2,5.45196816]
[1746387838281,6.14,1834.4,1834.2,5.45196816]
[1746387838465,0.46485674,1834.3,1834.2,5.45196816]
[1746387839485,6.14,1834.4,1834.2,5.45196816]
[1746387839788,0.46485674,1834.3,1834.1,7.32846615]
[1746387839987,6.14,1834.4,1834.1,7.32846615]
[1746387840285,6.14,1834.4,1834.1,5.45214091]
[1746387840477,6.14,1834.4,1834.1,5.45204305]
[1746387840678,6.14,1834.4,1834.1,10.90407139]
[1746387840986,0.46485674,1834.2,1834.1,5.45202834]
[1746387841155,6.14,1834.4,1834.1,7.42668418]
[1746387841363,0.46485674,1834.3,1834.0,7.11712524]
[1746387841557,11.59138239,1834.4,1834.1,5.4522644]
[1746387841757,0.46485674,1834.3,1834.1,5.4522644]
[1746387841956,11.59138239,1834.4,1834.1,5.4522644]
[1746387842188,0.46485674,1834.3,1834.1,5.4522644]
[1746387842494,6.14,1834.4,1834.1,5.4522644]
[1746387842660,0.46555241,1834.2,1834.1,5.4522644]
[1746387842862,6.14,1834.4,1834.1,5.4522644]
[1746387843400,0.45626491,1834.3,1834.1,5.4522644]
[1746387843593,6.14,1834.4,1834.1,5.4522644]
[1746387843797,0.45626491,1834.3,1834.1,5.4522644]
[1746387843996,6.14,1834.4,1834.1,5.4522644]
[1746387844161,0.45626491,1834.3,1834.1,5.4522644]
[1746387844492,6.14,1834.4,1834.1,5.4522644]
[1746387844694,0.45626491,1834.2,1834.1,5.4522644]
[1746387845175,6.14,1834.4,1834.1,5.4522644]
[1746387845372,0.45626491,1834.3,1834.1,5.4522644]
[1746387845574,6.14,1834.3,1834.1,5.4522644]
[1746387845773,0.45626491,1834.2,1834.1,5.4522644]
[1746387848001,0.45626491,1834.2,1834.1,7.17717876]
[1746387850575,0.45626491,1834.2,1834.1,5.4522644]
[1746387854121,0.45626491,1834.2,1834.1,7.32858964]
[1746387857130,0.45626491,1834.2,1834.1,8.14588964]
[1746387860543,6.14,1834.3,1834.2,5.45196816]
[1746387860844,6.59649674,1834.3,1834.2,7.3282934]
[1746387861044,6.59649674,1834.3,1834.2,5.45196816]
[1746387868125,6.59649674,1834.3,1834.2,6.989089]
[1746387871166,6.59649674,1834.3,1834.2,8.86541424]
[1746387874749,6.59649674,1834.3,1834.2,9.69441424]
[1746387874951,0.45649674,1834.3,1834.2,9.69441424]
[1746387875171,6.14,1834.6,1834.4,5.4512253]
[1746387875473,0.45703783,1834.5,1834.4,5.4512253]
[1746387879472,0.45703783,1834.5,1834.3,5.45141546]
[1746387879776,0.45703783,1834.5,1834.4,5.45137374]
[1746387881783,0.45703783,1834.5,1834.3,12.41742313]
[1746387882286,0.45703783,1834.5,1834.4,5.45137374]
[1746387894607,0.45703783,1834.5,1834.3,5.45151279]
[1746387896505,0.45703783,1834.5,1834.3,9.91851279]
[1746387898207,0.45703783,1834.5,1834.3,9.91845687]
[1746387899492,7.34994433,1834.5,1834.3,4.467]
[1746387899698,0.782,1834.4,1834.3,4.467]
[1746387900224,1.24104728,1834.4,1834.3,4.467]
[1746387903330,1.24104728,1834.4,1834.3,9.91867093]
[1746387903487,0.45904728,1834.4,1834.3,11.79499617]
[1746387903691,6.14,1834.6,1834.4,5.45121954]
[1746387904203,6.14,1834.7,1834.4,5.45121954]
[1746387904429,0.45904728,1834.5,1834.4,5.45121954]
[1746387904627,6.14,1834.7,1834.4,5.45121954]
[1746387904826,0.45904728,1834.5,1834.4,5.45121954]
[1746387905127,6.14,1834.7,1834.4,7.35663939]
[1746387905424,6.14,1834.7,1834.4,5.45121954]
[1746387905621,0.45904728,1834.6,1834.4,5.45121954]
[1746387905794,6.14,1834.7,1834.4,5.45121954]
[1746387905995,0.45904728,1834.5,1834.4,5.45121954]
[1746387906194,11.59049087,1834.7,1834.3,9.91849882]
[1746387906419,0.45904728,1834.6,1834.3,9.91849882]
[1746387906690,11.59049087,1834.7,1834.3,11.72645388]
[1746387906894,0.45904728,1834.5,1834.3,11.72645388]
[1746387907121,11.59049087,1834.7,1834.3,17.17793119]
[1746387907427,11.59049087,1834.7,1834.3,11.72643237]
[1746387907635,0.45904728,1834.6,1834.3,11.72643237]
[1746387907794,11.59049087,1834.7,1834.3,11.72643237]
[1746387907994,0.45904728,1834.6,1834.3,11.72643237]
[1746387908196,11.59049087,1834.7,1834.3,11.72643237]
[1746387908424,0.45904728,1834.6,1834.3,11.72643237]
[1746387908625,11.59049087,1834.7,1834.3,11.72643237]
[1746387908822,0.45904728,1834.5,1834.4,5.45135551]
[1746387909029,6.14,1834.7,1834.4,7.1691343]
[1746387909229,0.4595882,1834.5,1834.4,5.45135551]
[1746387909429,6.14,1834.7,1834.4,5.45135551]
[1746387909629,0.4595882,1834.5,1834.4,5.45135551]
[1746387909929,6.14,1834.7,1834.4,5.45135551]
[1746387910130,0.4595882,1834.5,1834.4,5.45135551]
[1746387910427,0.4595882,1834.5,1834.4,6.98833879]
[1746387910627,6.14,1834.7,1834.4,6.98833879]
[1746387910832,0.4595882,1834.5,1834.4,5.45135551]
[1746387911034,6.14,1834.7,1834.4,5.45135551]
[1746387911195,0.4595882,1834.5,1834.4,5.45135551]
[1746387911396,6.14,1834.7,1834.4,5.45135551]
[1746387911596,0.46043824,1834.6,1834.4,5.45135551]
[1746387911794,6.14,1834.7,1834.4,5.45135551]
[1746387912020,0.46043824,1834.6,1834.4,5.45135551]
[1746387912192,6.14,1834.7,1834.4,5.45135551]
[1746387912398,0.46036096,1834.6,1834.4,5.45135551]
[1746387912608,6.14,1834.7,1834.4,5.45135551]
[1746387912810,0.46036096,1834.5,1834.4,5.45135551]
[1746387913102,6.14,1834.7,1834.4,7.17597132]
[1746387913304,0.46036096,1834.5,1834.4,5.45135551]
[1746387913602,0.46036096,1834.5,1834.4,5.45116093]
[1746387913822,6.14,1834.7,1834.4,5.45116093]
[1746387914026,7.3596519,1834.8,1834.5,5.45106226]
[1746387915246,6.5444519,1834.8,1834.5,5.45106226]
[1746387919457,0.46043824,1834.7,1834.5,5.45106226]
[1746387919637,0.46043824,1834.7,1834.5,6.62043458]
[1746387924877,0.46043824,1834.7,1834.5,1.16937232]
[1746387925037,0.46043824,1834.7,1834.4,6.24271557]
[1746387926568,0.46043824,1834.7,1834.4,6.2426696]
[1746387934578,0.46043824,1834.7,1834.4,10.7086696]
[1746387939312,0.46043824,1834.7,1834.4,16.15982059]
[1746387940007,0.46043824,1834.7,1834.5,5.45106479]
[1746387940163,0.46043824,1834.7,1834.4,10.70865099]
[1746387940363,0.46043824,1834.7,1834.4,11.96714861]
[1746387941505,0.46043824,1834.7,1834.5,5.45105578]
[1746387941664,0.46043824,1834.7,1834.6,6.29758526]
[1746387941865,0.46043824,1834.7,1834.6,8.1194047]
[1746387943971,0.46043824,1834.7,1834.6,12.5844047]
[1746387944171,0.46043824,1834.7,1834.6,14.38795075]
[1746387954735,1.25763824,1834.7,1834.6,4.465]
[1746387956938,7.39763824,1834.7,1834.6,4.465]
[1746387958638,7.39763824,1834.7,1834.4,5.45120316]
[1746387960241,7.39763824,1834.7,1834.4,5.45115192]
[1746387961145,7.39763824,1834.7,1834.5,5.4510288]
[1746387961460,8.17784725,1834.7,1834.5,5.4510288]
[1746387961640,8.17784725,1834.7,1834.6,5.45077946]
[1746387962342,7.39763824,1834.7,1834.6,5.45077946]
[1746387962533,6.60043824,1834.7,1834.6,5.45077946]
[1746387962835,0.46043824,1834.7,1834.6,5.45077946]
[1746387970618,0.46043824,1834.7,1834.6,7.38160662]
[1746387971152,0.46043824,1834.7,1834.6,7.3271047]
[1746387971357,0.46043824,1834.7,1834.6,9.12762805]
[1746387973460,0.46043824,1834.7,1834.6,7.25130281]
[1746387980061,0.46043824,1834.7,1834.6,11.71530281]
[1746387985246,6.5444519,1834.8,1834.7,5.45048236]
[1746387985569,7.00828967,1834.8,1834.7,5.45048236]
[1746387985864,0.7725,1834.7,1834.6,4.464]
[1746387986236,7.37633777,1834.7,1834.6,4.464]
[1746387986875,7.37633777,1834.7,1834.6,9.91477946]
[1746387987742,8.15441674,1834.7,1834.6,4.464]
[1746387999388,8.15441674,1834.7,1834.5,5.45097563]
[1746387999593,7.37633777,1834.7,1834.5,5.45097563]
[1746388000906,7.37633777,1834.7,1834.4,9.9151516]
[1746388002402,0.7506,1834.6,1834.4,4.464]
[1746388002611,0.7506,1834.5,1834.4,4.464]
[1746388002779,6.6622694,1834.5,1834.4,4.464]
[1746388002984,7.87360002,1834.5,1834.1,9.91620622]
[1746388003874,6.14,1834.4,1834.1,9.91620622]
[1746388004114,0.45997462,1834.3,1834.1,9.91620622]
[1746388004294,6.14,1834.3,1834.1,4.464]
[1746388004500,1.21057462,1834.2,1834.1,4.464]
[1746388004808,7.35057462,1834.2,1834.1,4.464]
[1746388005407,6.59997462,1834.2,1834.1,9.91626541]
[1746388006317,6.59997462,1834.2,1834.1,4.464]
[1746388008412,13.58216992,1834.2,1834.0,3.6607553]
[1746388008576,8.13007208,1834.2,1834.0,3.6607553]
[1746388008785,8.13007208,1834.2,1833.9,5.45281425]
[1746388009522,8.13007208,1834.2,1833.8,31.45229195]
[1746388009732,6.14,1834.1,1833.8,31.45229195]
[1746388009885,6.59804239,1834.1,1833.8,31.45229195]
[1746388010391,6.59804239,1834.1,1833.8,24.123]
[1746388010577,12.05041693,1834.1,1833.8,24.123]
[1746388010782,6.59804239,1834.1,1833.8,24.123]
[1746388010995,6.59804239,1834.1,1833.8,29.576132]
[1746388011407,12.05042343,1834.1,1833.8,24.123]
[1746388011921,6.59804239,1834.1,1833.8,24.123]
[1746388012101,12.05034668,1834.1,1833.8,24.123]
[1746388012431,6.9224,1834.0,1833.8,24.123]
[1746388012823,12.37497483,1834.0,1833.8,24.123]
[1746388012991,0.45301789,1833.9,1833.8,24.123]
[1746388013320,0.45301789,1833.9,1833.8,4.464]
[1746388013321,12.04587791,1833.9,1833.8,4.464]
[1746388013689,12.04587791,1833.9,1833.5,10.67266044]
[1746388013891,6.14,1833.8,1833.5,10.67266044]
[1746388014381,0.45301789,1833.7,1833.5,10.67266044]
[1746388015626,0.45301789,1833.7,1833.5,16.12647171]
[1746388015822,0.45301789,1833.7,1833.5,10.67261127]
[1746388015985,0.45301789,1833.7,1833.5,9.91781127]
[1746388017826,1.24741789,1833.7,1833.5,9.91804929]
[1746388018330,0.45301789,1833.7,1833.5,9.91781514]
[1746388018529,6.59301789,1833.7,1833.5,9.91781514]
[1746388018826,6.59301789,1833.7,1833.5,4.464]
[1746388019129,8.04671968,1833.7,1833.5,4.464]
[1746388020234,6.14,1833.6,1833.5,4.464]
[1746388020612,6.58868779,1833.6,1833.5,4.464]
[1746388022420,12.04243997,1833.6,1833.2,10.67280007]
[1746388023144,17.49648053,1833.6,1833.2,5.218]
[1746388023347,14.48281416,1833.6,1833.2,10.67286551]
[1746388024843,0.754,1833.5,1833.2,9.91986551]
[1746388025141,6.58598088,1833.4,1833.2,9.91986551]
[1746388025813,6.58598088,1833.4,1833.2,4.465]
[1746388026021,6.58598088,1833.4,1833.2,10.70529571]
[1746388026731,6.58598088,1833.4,1833.3,5.45464462]
[1746388027939,6.58598088,1833.4,1833.2,10.70536395]
[1746388029846,6.58598088,1833.4,1833.3,5.45464462]
[1746388030320,6.58598088,1833.4,1833.2,10.70533246]
[1746388033106,6.58598088,1833.4,1833.2,4.465]
[1746388033107,6.14,1833.3,1833.2,4.465]
[1746388033543,6.58598088,1833.3,1833.2,4.465]
[1746388035499,8.02107897,1833.3,1833.0,3.65367337]
[1746388035639,6.23173975,1833.1,1833.0,3.65367337]
[1746388035839,12.37173975,1833.1,1833.0,3.65367337]
[1746388036153,12.81416205,1833.1,1833.0,3.65367337]
[1746388053124,12.81416205,1833.1,1832.6,4.466]
[1746388053125,6.2176304,1832.7,1832.6,4.466]
[1746388053290,5.45672814,1832.6,1832.5,5.8571066]
[1746388053891,5.89148864,1832.6,1832.5,5.8571066]
[1746388056626,12.03148864,1832.6,1832.5,5.8571066]
[1746388056810,13.85640054,1832.6,1832.5,5.8571066]
[1746388064852,6.5747605,1832.6,1832.5,5.8571066]
[1746388065029,6.5747605,1832.6,1832.5,6.6302066]
[1746388065573,12.03148864,1832.6,1832.5,5.8571066]
[1746388073025,0.4347605,1832.6,1832.5,8.87895919]
[1746388073307,0.4347605,1832.6,1832.5,18.69885857]
[1746388073516,0.4347605,1832.6,1832.5,19.11048819]
[1746388074013,6.14,1832.9,1832.7,5.45617388]
[1746388074171,6.14,1832.9,1832.8,0.8019]
[1746388074508,6.14,1832.9,1832.8,6.25803269]
[1746388075282,6.14,1832.9,1832.8,0.8019]
[1746388075921,6.14,1832.9,1832.8,6.25803269]
[1746388076973,6.14,1832.9,1832.8,0.8019]
[1746388077189,6.14,1833.0,1832.8,0.8019]
[1746388079413,6.14,1833.0,1832.9,5.45583501]
[1746388080222,6.14,1833.0,1832.8,6.25780778]
[1746388080591,6.14,1833.0,1832.8,7.54939082]
[1746388080889,6.14,1833.0,1832.9,5.45583501]
[1746388081531,6.14,1833.0,1832.8,7.54942363]
[1746388083032,6.14,1833.1,1832.8,7.54942363]
[1746388084330,6.14,1833.1,1832.9,5.45572388]
[1746388084516,0.36125951,1833.0,1832.9,6.7561667]
[1746388087632,0.36125951,1833.0,1832.9,7.5284667]
[1746388087832,0.36125951,1833.0,1832.9,9.71851929]
[1746388091356,0.36125951,1833.0,1832.9,7.5284667]
[1746388091501,0.36125951,1833.0,1832.8,5.45594724]
[1746388091700,6.50125951,1833.0,1832.8,5.45594724]
[1746388096337,6.50125951,1833.0,1832.7,10.6965415]
[1746388096542,6.50125951,1833.0,1832.8,5.45611457]
[1746388099872,6.50125951,1833.0,1832.7,9.92424319]
[1746388102271,12.41704437,1832.9,1832.6,4.486]
[1746388102459,12.78140873,1832.9,1832.6,4.486]
[1746388102676,7.32536436,1832.9,1832.6,9.94270233]
[1746388102973,6.50436436,1832.9,1832.6,9.94270233]
[1746388105207,11.96025117,1832.9,1832.6,4.486]
[1746388105378,8.32805938,1832.9,1832.6,4.486]
[1746388105580,13.78394197,1832.9,1832.6,4.486]
[1746388105780,0.831,1832.8,1832.6,4.486]
[1746388105980,11.5964304,1832.7,1832.5,5.8571066]
[1746388106283,6.14,1832.6,1832.5,5.8571066]
[1746388106697,6.5028122,1832.6,1832.5,5.8571066]
[1746388107192,6.5028122,1832.6,1832.5,6.6273066]
[1746388109593,6.5028122,1832.6,1832.5,5.8571066]
[1746388111494,6.5028122,1832.6,1832.5,11.31413252]
[1746388111699,6.5028122,1832.6,1832.5,5.8571066]
[1746388116090,6.5028122,1832.6,1832.5,11.31413252]
[1746388117770,6.5028122,1832.6,1832.5,5.8571066]
[1746388123180,13.94396583,1832.6,1832.5,5.8571066]
[1746388124008,8.48723769,1832.6,1832.5,5.8571066]
[1746388129209,6.5028122,1832.6,1832.5,5.8571066]
[1746388139030,6.5028122,1832.6,1832.5,11.31413252]
[1746388139528,6.5028122,1832.6,1832.5,12.14293252]
[1746388142637,6.5028122,1832.6,1832.5,6.28582592]
[1746388143228,6.5028122,1832.6,1832.5,8.47587851]
[1746388143433,6.5028122,1832.6,1832.5,14.36118721]
[1746388153704,0.3628122,1832.6,1832.5,14.36118721]
[1746388154036,6.14,1833.0,1832.9,5.45583501]
[1746388154242,9.80576941,1833.1,1832.9,10.91167002]
[1746388154631,9.80576941,1833.1,1832.9,5.45583501]
[1746388154943,9.80576941,1833.1,1833.0,7.64558996]
[1746388156144,6.14,1833.1,1833.0,7.64558996]
[1746388156305,6.14,1833.1,1833.0,10.17633246]
[1746388159648,6.49610491,1833.1,1833.0,10.17633246]
[1746388162047,0.35610491,1833.1,1833.0,10.17633246]
[1746388162347,6.14,1833.3,1833.1,5.45497305]
[1746388162550,0.35610491,1833.2,1833.1,5.45497305]
[1746388168020,0.35610491,1833.2,1833.1,7.01809243]
[1746388171262,0.35610491,1833.2,1833.1,7.07263883]
[1746388172463,0.35610491,1833.2,1833.1,7.01809243]
[1746388173368,0.35610491,1833.2,1833.1,7.0726388]
[1746388174068,0.35610491,1833.2,1833.1,7.01809243]
[1746388177677,0.35610491,1833.2,1833.1,7.07263879]
[1746388177878,0.35610491,1833.2,1833.1,8.89605116]
[1746388178385,0.35610491,1833.2,1833.1,8.95059753]
[1746388179908,0.35610491,1833.2,1833.1,13.43359753]
[1746388180115,0.35610491,1833.2,1833.1,13.37905116]
[1746388189734,6.14,1833.3,1833.2,5.45494217]
[1746388191027,6.14,1833.3,1833.1,9.93807671]
[1746388191242,0.7925,1833.2,1833.1,9.93807671]
[1746388191402,6.9325,1833.2,1833.1,9.93807671]